Cogmind - Beta 11 X10 @@@ ROGUE MODE // 2022.02.18 @ 14:12:53 Player: maxwell Result: Destroyed by G-47 Trooper with Particle Gun Performance ------------- Evolutions (0) 0 Regions Visited (4) 800 Robots Destroyed (30) 150 Value Destroyed (700) 700 Prototype IDs (0) 0 Alien Tech Used (0) 0 Bonus (-250) -250 TOTAL SCORE: 1400 Bonus ------- Friendly Fire -250 Cogmind --------- Core Integrity 0/250 Matter 288/300 Energy 150/150 System Corruption 0% Temperature Hot (290) Movement Rolling (175) Ox5 Location -9/Mines Parts ------- > --- POWER (1) -------- Light Angular Momentum Engine > --- PROPULSION (2) --- Compact Wheel > --- UTILITY (2) ------ Huge Storage Unit Visual Processing Unit > --- WEAPON (2) ------- Beam Cannon Beam Cannon > --- INVENTORY (25) --- Improved Ion Engine Light Treads Light Treads Light Treads Light Treads Light Treads Improved Heat Sink Huge Storage Unit High-capacity Matter Pod (200) Targeting Computer Targeting Computer Propulsion Shielding Utility Shielding Utility Shielding Light Armor Plating Authchip [R/Combat] EM Pulse Gun EM Pulse Gun EM Pulse Gun EM Pulse Gun Beam Rifle Beam Cannon Datajack Hammer Peak State ------------ > --- POWER ------------ Light Angular Momentum Engine > --- PROPULSION ------- Wheel Compact Wheel > --- UTILITY ---------- Huge Storage Unit Visual Processing Unit > --- WEAPON ----------- Beam Cannon Assault Rifle > --- INVENTORY -------- Improved Ion Engine Light Treads Light Treads Light Treads Light Treads Light Treads Improved Heat Sink Huge Storage Unit High-capacity Matter Pod Targeting Computer Targeting Computer Propulsion Shielding Utility Shielding Utility Shielding Light Armor Plating Authchip [R/Combat] EM Pulse Gun EM Pulse Gun EM Pulse Gun EM Pulse Gun Beam Rifle Beam Cannon Beam Cannon Datajack Hammer [Rating: 15] Favorites ----------- Power Light Ion Engine Engine Light Ion Engine Propulsion Light Treads Treads Light Treads Wheel Compact Wheel Utility Huge Storage Unit Device ECM Suite Storage Huge Storage Unit Processor Visual Processing Unit Weapon Beam Cannon Energy Gun Small Laser Energy Cannon Beam Cannon Ballistic Gun Assault Rifle Impact Weapon Hammer Build | -11 -10 -10 -10 -9 ------- Run | Scr Mat Min Exi Min Slots Evolved . | . . . . . Power . | . . . . . Propulsion . | . . . . . Utility . | . . . . . Weapon . | . . . . . Parts Attached 23 | 6 15 1 . 1 Power 3 | 1 1 1 . . Engine 3 | 1 1 1 . . Core . | . . . . . Reactor . | . . . . . Propulsion 8 | 2 6 . . . Treads 4 | 2 2 . . . Leg . | . . . . . Wheel 4 | . 4 . . . Hover . | . . . . . Flight . | . . . . . Utility 5 | 1 4 . . . Device 1 | . 1 . . . Storage 3 | 1 2 . . . Processor 1 | . 1 . . . Hackware . | . . . . . Protection . | . . . . . Artifact . | . . . . . Weapon 7 | 2 4 . . 1 Energy Gun 2 | 2 . . . . Energy Cannon 3 | . 2 . . 1 Ballistic Gun 1 | . 1 . . . Ballistic Cannon . | . . . . . Launcher . | . . . . . Special Weapon . | . . . . . Impact Weapon 1 | . 1 . . . Slashing Weapon . | . . . . . Piercing Weapon . | . . . . . Special Melee Weapon . | . . . . . Unidentified Prototypes . | . . . . . Parts Lost 7 | . 5 . . 2 Power 1 | . 1 . . . Propulsion 3 | . 2 . . 1 Utility . | . . . . . Weapon 3 | . 2 . . 1 Highest Loss Streak 3 | . 3 . . 2 To Critical Strikes . | . . . . . Average Slot Usage (%) 90 | . 87 100 100 92 Engine 6 | . 4 14 14 14 Treads 14 | . 17 . . . Wheel 13 | . 9 28 28 21 Device 1 | . 1 . . . Storage 14 | . 14 14 14 14 Processor 11 | . 10 14 14 14 Energy Gun 5 | . 7 . . . Energy Cannon 10 | . 9 14 14 21 Ballistic Gun 9 | . 8 14 14 7 Impact Weapon 1 | . 1 . . . Naked Turns . | . . . . . Heaviest Build 94 | 11 89 94 94 . Greatest Support 40 | 40 40 26 26 . Greatest Overweight (x) 5 | . 5 3 3 . Average Overweight (x) 2 | . 3 3 3 . Largest Inventory Capacity 25 | 8 25 25 25 25 Average Capacity 22 | 7 22 25 25 25 Most Carried 25 | 3 20 25 25 25 Average Carried 13 | 1 11 23 25 24 Final Capacity 25 | 8 25 25 25 25 Final Carried 25 | 3 20 25 25 24 Class Distribution -------------------- 100% | Mutant Dominant Class ---------------- Mutant | -10/Materials Mutant | -10/Mines Mutant | -10/Exiles Mutant | -9/Mines Resources | -11 -10 -10 -10 -9 ----------- Run | Scr Mat Min Exi Min Matter Collected 743 | 65 608 70 . . Remotely . | . . . . . Salvage Created 1123 | . 938 112 . 73 Parts 67 | . 59 3 . 5 Haulers Intercepted 2 | . 2 . . . Recyclers Shooed 2 | . 1 1 . . Parts Field Recycled . | . . . . . Retrieved Matter . | . . . . . Parts Self-Destructed . | . . . . . Prevented . | . . . . . Kills | -11 -10 -10 -10 -9 ------- Run | Scr Mat Min Exi Min Combat Hostiles Destroyed 19 | . 16 1 . 2 Guns 8 | . 7 . . 1 Cannons 7 | . 5 1 . 1 AOE 2 | . 2 . . . Classes Destroyed 9 | . 8 1 . . Worker 2 | . 2 . . . Builder 1 | . 1 . . . Tunneler 1 | . 1 . . . Hauler 2 | . 2 . . . Recycler 1 | . 1 . . . Watcher 3 | . 3 . . . Swarmer 3 | . 3 . . . Grunt 15 | . 13 . . 2 Sentry 1 | . . 1 . . Thug 1 | . . 1 . . Best Kill Streak 6 | . 6 1 . 2 Combat Bots Only 5 | . 5 1 . 2 Max Kills in Single Turn 4 | . 4 1 . 1 Gunslinging . | . . . . . Exploded 1 | . 1 . . . Melee . | . . . . . Uniques/NPCs Destroyed . | . . . . . Combat | -11 -10 -10 -10 -9 -------- Run | Scr Mat Min Exi Min Damage Taken 1002 | . 826 . . 176 Core 251 | . 172 . . 79 Absorbed by Shields . | . . . . . Core Remaining (%) 100 | 100 . . . . Volleys Fired 81 | . 66 9 . 6 Largest 2 | . 2 2 . 2 Hottest 120 | . 100 80 . 120 Shots Fired 160 | . 130 18 . 12 Gun 103 | . 90 9 . 4 Cannon 57 | . 40 9 . 8 Launcher . | . . . . . Special . | . . . . . Kinetic 38 | . 25 9 . 4 Thermal 97 | . 80 9 . 8 Explosive . | . . . . . Electromagnetic 25 | . 25 . . . Robot Hit Streak 6 | . 6 5 . 3 Robot Miss Streak 4 | . 4 1 . 2 Penetration Max . | . . . . . Secondary Targets 2 | . 2 . . . Max Gunslinging Chain 1 | . 1 . . . Shots Hit Robots 101 | . 81 13 . 7 Core Hits 47 | . 39 4 . 4 Critical Kills 2 | . 2 . . . Critical Parts Destroyed . | . . . . . Critical Strikes 2 | . 2 . . . Meltdown 1 | . 1 . . . Smash 1 | . 1 . . . Melee Attacks 16 | . 16 . . . Impact 16 | . 16 . . . Slashing . | . . . . . Piercing . | . . . . . Sneak Attacks . | . . . . . Combat Hostiles . | . . . . . Follow-up Attacks . | . . . . . Damage Inflicted 1850 | . 1520 210 . 120 Guns 809 | . 671 87 . 51 Cannons 666 | . 474 123 . 69 Explosions 346 | . 346 . . . Melee 24 | . 24 . . . Ramming 5 | . 5 . . . Kinetic 331 | . 193 87 . 51 Thermal 1064 | . 872 123 . 69 Explosive . | . . . . . Electromagnetic 426 | . 426 . . . Impact 24 | . 24 . . . Slashing . | . . . . . Piercing . | . . . . . Highest Corruption . | . . . . . Average Corruption . | . . . . . Corruption Purged . | . . . . . Corruption Blocked . | . . . . . Overload Shots . | . . . . . Overflow Damage 10 | . 10 . . . Projectiles 10 | . 10 . . . Explosions . | . . . . . Melee . | . . . . . Knockbacks . | . . . . . Impact . | . . . . . Kinetic . | . . . . . Secondary . | . . . . . Self-Inflicted Damage 87 | . 87 . . . Shots 3 | . 3 . . . Rammed . | . . . . . Targets Rammed 1 | . 1 . . . Kicked . | . . . . . Crushed 1 | . 1 . . . Highest Temperature 389 | . 389 144 . 281 Average Temperature 98 | . 101 58 . 129 Received Heat Transfer 444 | . 342 . . 102 Effects 2 | . 2 . . . Shutdowns 1 | . 1 . . . Matter Decay 1 | . 1 . . . Siege Activations . | . . . . . Robots Corrupted . | . . . . . Combat Hostiles . | . . . . . Parts Fried 2 | . 2 . . . Impact Corruptions . | . . . . . Robots Melted 2 | . 2 . . . Combat Hostiles 2 | . 2 . . . Parts Melted 6 | . 4 2 . . Heat Transferred 2281 | . 1874 259 . 148 Parts Sabotaged . | . . . . . Parts Stolen . | . . . . . Parts Stripped . | . . . . . Power Chain Reactions 3 | . 3 . . . Missiles Intercepted . | . . . . . Alert | -11 -10 -10 -10 -9 ------- Run | Scr Mat Min Exi Min Peak Influence 239 | . 239 45 . 20 Initial 25 | . . 25 . . Average 87 | . 99 41 . 14 Maximum Alert Level 1 | . 1 . . . Low Security (%) 90 | 100 88 100 . 100 Level 1 9 | . 11 . . . Level 2 . | . . . . . Level 3 . | . . . . . Level 4 . | . . . . . Level 5 . | . . . . . High Security . | . . . . . Max Security . | . . . . . Squads Dispatched 5 | . 5 . . . Investigation 4 | . 4 . . . Extermination . | . . . . . Reinforcement 1 | . 1 . . . Assault . | . . . . . Garrison . | . . . . . Intercept . | . . . . . Construction Impeded . | . . . . . Haulers Reinforced . | . . . . . Active Scanning Responses . | . . . . . Cargo Convoy Interrupts . | . . . . . Stealth | -11 -10 -10 -10 -9 --------- Run | Scr Mat Min Exi Min Distress Signals 1 | . 1 . . . Communications Jammed . | . . . . . Distress Signals . | . . . . . Times Spotted 29 | . 25 1 . 3 Peak Tracking Total 5 | . 5 1 . 3 Tactical Retreats 1 | . 1 . . . Traps | -11 -10 -10 -10 -9 ------- Run | Scr Mat Min Exi Min Traps Triggered 2 | . 2 . . . Indirectly . | . . . . . Trap Hack Attempts . | . . . . . Triggered . | . . . . . Disarmed . | . . . . . Reprogrammed . | . . . . . Reused . | . . . . . Traps Extracted . | . . . . . Installed . | . . . . . Triggered . | . . . . . Machines | -11 -10 -10 -10 -9 ---------- Run | Scr Mat Min Exi Min Machines Disabled 4 | . 3 1 . . Max in Single Turn 2 | . 2 1 . . Machines Sabotaged . | . . . . . Garrisons Compromised . | . . . . . Overloaded Fab Kills . | . . . . . Hacking | -11 -10 -10 -10 -9 --------- Run | Scr Mat Min Exi Min Machines Accessed 9 | . 8 . 1 . Terminals 6 | . 6 . . . Fabricators . | . . . . . Repair Stations . | . . . . . Recycling Units 2 | . 2 . . . Scanalyzers . | . . . . . Garrison Access . | . . . . . Total Hacks 24 | . 23 . 1 . Successful 13 | . 12 . 1 . Failed 11 | . 11 . . . Catastrophic . | . . . . . Database Lockouts . | . . . . . Manual 23 | . 23 . . . Terminals 21 | . 21 . . . Fabricators . | . . . . . Repair Stations . | . . . . . Recycling Units 2 | . 2 . . . Scanalyzers . | . . . . . Garrison Access . | . . . . . Terminal Hacks 7 | . 6 . 1 . Record 1 | . . . 1 . Part Schematic 2 | . 2 . . . Robot Analysis 1 | . 1 . . . Terminal Index 1 | . 1 . . . Locate Traps 2 | . 2 . . . Fabricator Hacks . | . . . . . Repair Station Hacks . | . . . . . Recycling Unit Hacks . | . . . . . Scanalyzer . | . . . . . Garrison Access Hacks . | . . . . . Unauthorized Hacks 6 | . 6 . . . Terminals 4 | . 4 . . . Track 2 | . 2 . . . Botnet 1 | . 1 . . . Operators 1 | . 1 . . . Fabricators . | . . . . . Repair Stations . | . . . . . Recycling Units 2 | . 2 . . . Tunnel 2 | . 2 . . . Scanalyzers . | . . . . . Garrison Access . | . . . . . Data Cores Recovered . | . . . . . Used . | . . . . . Hacking Detections 6 | . 6 . . . Full Trace Events 2 | . 2 . . . Feedback Events . | . . . . . Feedback Blocked . | . . . . . Robot Schematics Acquired . | . . . . . Robots Built . | . . . . . Authchips . | . . . . . Time . | . . . . . Total Robot Build Rating . | . . . . . Part Schematics Acquired 1 | . 1 . . . Parts Built . | . . . . . Authchips . | . . . . . Time . | . . . . . Total Part Build Rating . | . . . . . Parts Repaired . | . . . . . Time . | . . . . . Parts Recycled . | . . . . . Recycled Matter . | . . . . . Retrieved Matter . | . . . . . Retrieved Components . | . . . . . Parts Scanalyzed . | . . . . . Part Schematics Acquired . | . . . . . Parts Damaged . | . . . . . Bothacking | -11 -10 -10 -10 -9 ------------ Run | Scr Mat Min Exi Min Used RIF Installer . | . . . . . Robots Hacked . | . . . . . Non-combat . | . . . . . Combat . | . . . . . Robot Hacks Applied . | . . . . . Relay Couplers Released . | . . . . . Fabnet Peak Effective % . | . . . . . Robots Rewired . | . . . . . Allies Hacked . | . . . . . Hacks Repelled . | . . . . . Allies | -11 -10 -10 -10 -9 -------- Run | Scr Mat Min Exi Min Total Allies . | . . . . . Largest Group . | . . . . . Highest-Rated Group . | . . . . . Highest-Rated Ally . | . . . . . Total Orders . | . . . . . Ally Attacks . | . . . . . Total Damage . | . . . . . Kills . | . . . . . Allies Corrupted . | . . . . . Allies Melted . | . . . . . Intel | -11 -10 -10 -10 -9 ------- Run | Scr Mat Min Exi Min Robot Analysis Total 1 | . 1 . . . Derelict Logs Recovered 1 | . . 1 . . Drone Launches . | . . . . . Drone Recoveries . | . . . . . Exploration | -11 -10 -10 -10 -9 ------------- Run | Scr Mat Min Exi Min Turns Passed 2363 | 91 1796 269 189 18 Spaces Moved 990 | 52 642 155 141 . Core 3 | 3 . . . . Treads 291 | 49 242 . . . Legs . | . . . . . Wheels 696 | . 400 155 141 . Hover . | . . . . . Flight . | . . . . . Fastest Speed 50 | 50 130 135 135 . Average Speed 174 | 153 193 135 135 . Slowest Speed 480 | 160 480 135 135 . Overloaded Moves . | . . . . . Propulsion Burnouts . | . . . . . Robots Hopped . | . . . . . Cave-ins Triggered . | . . . . . Exploration Rate (%) 36 | 4 89 29 56 6 Regions Visited 4 Branch Regions 3 Pre-discovered Areas 5 | . 2 2 1 . Known Exits Taken . | . . . . . Unknown Exits Taken 4 | 1 1 1 1 . Scrap Searched 2 | . . 2 . . Spaces Dug 3 | . 3 . . . Terrain Destroyed 12 | . 12 . . . Melee 3 | . 3 . . . Projectile . | . . . . . AOE 9 | . 9 . . . Terrain Rammed . | . . . . . Walls Destroyed . | . . . . . Machines Disabled . | . . . . . Actions | -11 -10 -10 -10 -9 --------- Run | Scr Mat Min Exi Min Total 1439 | 60 1031 201 140 7 Wait 281 | . 265 16 . . Move 986 | 51 641 154 140 . Hop . | . . . . . Pick Up 38 | 3 22 13 . . Fast Attach 10 | 6 4 . . . Attach 7 | . 5 1 . 1 Detach 1 | . 1 . . . Swap 6 | . 6 . . . Drop 12 | . 4 8 . . Fire 81 | . 66 9 . 6 Melee 16 | . 16 . . . Ram . | . . . . . Kick . | . . . . . Crush 1 | . 1 . . . Escape Stasis . | . . . . . Rewire . | . . . . . Trap . | . . . . . Miscellaneous . | . . . . . Route ------- -11/Scrapyard -10/Materials (discovered 4 exits: [*Mat x2] / [*Min x2]) -10/Mines -10/Exiles (discovered 2 exits: [*Min x2]) -9/Mines History --------- Turn | Location | Event 16 | -11/Scrapyard | Discovered new exit (range 16) 92 | -11/Scrapyard | Entered Materials 300 | -10/Materials | Build established: Mutant 376 | -10/Materials | Discovered new exit (range 13) 656 | -10/Materials | Discovered new exit (range 17) 771 | -10/Materials | Lost 3 parts (1p1n1w) 788 | -10/Materials | Core integrity fell below 50% 1019 | -10/Materials | Discovered new exit (range 18) 1585 | -10/Materials | Discovered new exit (range 18) 1888 | -10/Materials | Entered Mines 1889 | -10/Mines | Learned location of Storage (-7) 1910 | -10/Mines | Met a Derelict bent on vengeance 1927 | -10/Mines | Joined a pair of Derelicts in attacking an 0b10 outpost 1943 | -10/Mines | Learned location of Zion (-6) 2151 | -10/Mines | Deemed a non-threat by the Exiles lab entrance 2152 | -10/Mines | Discovered new exit (range 5) 2157 | -10/Mines | Entered Exiles 2175 | -10/Exiles | Discovered new exit (range 16) 2191 | -10/Exiles | Met 8R-AWN 2213 | -10/Exiles | Met EX-HEX 2270 | -10/Exiles | Met EX-DEC 2336 | -10/Exiles | Discovered new exit (range 10) 2346 | -10/Exiles | Entered Mines 2351 | -9/Mines | Core integrity fell below 20% 2364 | -9/Mines | Destroyed by G-47 Trooper with Particle Gun Last Messages --------------- Anyway, I've got to get back to poking and prodding these nasty little guys. Go see BIN. I can't imagine you'll want to stay in our boring little cave for long, and we could use some help with the project in the back. EX-DEC: Ah I see we have a visitor. One wrong move in here and I'll invert your atomic chain! 02272_ EX-DEC: "Oops, I hope HEX didn't hear that..." 02292_ Connecting with EX-Message Board... 02292_ Current location identified: Exiles >> PINNED - TO ALL TESTERS: Stay away from Zion. Imprinter means us harm and is serious about it. World map confirmed: -6/Zion. 02336_ EXIT=FOUND LOCATION=UNKNOWN GOAL=ESCAPE 02349_ G-34 Mercenary destroyed. 02356_ Assault Rifle destroyed. 02358_ Wheel destroyed. 02359_ G-34 Mercenary destroyed. Map ----- +----------------------------------------------------+ | ?????????????????????????????????????????????? | | ?????????????????????????????????????????????? | | ?????????????????????????????????????????????? | | ?????????????????????????????????????????????? | | ?????????????????????????????????????????????? | | ?????????????????????????????????????????????? | | ?????????????????????????????????????????????? | | ?????????????????????????????????????????????? | | ?????????????????????????????????????????????? | | ?????????????????????????????????????????????? | | ?????????????????????????????????????????????? | | ?????????????????????????????????????????????? | | ?????????????????????????????????????????????? | | ?????????????????????????????????????????????? | | ?????????????????????????????????????????????? | | ?????????????????????????????????????????????? | | ?????????????????????????????????????????????? | | ?????????????????????????????????????????????? | | ?????? ????###?????????????????????????????? | | ?????? ### #????????????????#???????????? | | ?????? #????????????? ##??????????? | | ????? #?????????? ####???????? | | ???????? ##?????? r???????? | | ???????????# % #### ??????? | | ????????????# [*g #???????? | | ?????????????# =%= @ #????????? | | ?????????????##### ##### #????????? | | ?????????????????## #?????????????????????? | | ??????????????????# ?????????????????????? | | ??????????????????# #????????????????????? | | ??????????????????# ##????????????????????? | | ??????????????????# #?????????????????????? | | ??????????????????## ?????????????????????? | | ???????????????????## ?????????????????????? | | ????????????????????####?????????????????????? | | ?????????????????????????????????????????????? | | ?????????????????????????????????????????????? | | ?????????????????????????????????????????????? | | ?????????????????????????????????????????????? | | ?????????????????????????????????????????????? | | ?????????????????????????????????????????????? | | ?????????????????????????????????????????????? | | ?????????????????????????????????????????????? | | ?????????????????????????????????????????????? | | ?????????????????????????????????????????????? | | ?????????????????????????????????????????????? | | ?????????????????????????????????????????????? | | ?????????????????????????????????????????????? | | ?????????????????????????????????????????????? | | ?????????????????????????????????????????????? | +----------------------------------------------------+ Best States ------------- Heat Dissipation 25 Energy Generation 18 Energy Capacity 150 Matter Stores 300 Matter Capacity 300 Sight Range 18 Terrain Scan Density 10 ECM Strength 1 Evasion (%) 40 Recoil Reduction 2 Authchip Count 1 Item Schematics ----------------- Huge Storage Unit | -10/Materials | Hacked Robot Schematics ------------------ None Fabricated ------------ Nothing Alien Tech Used ----------------- None Achievements -------------- None Challenges ------------ None Game ------ Seed ChipReflectiveCompactor Manual? 0 Play Time 00:08:33 Cumulative 159.6 hours Start 2022.02.18 @ 14:03:04 End 2022.02.18 @ 14:12:53 Sessions 1 Manual Loads 0 Difficulty Rogue Special Mode None Game No. 269 Rogue 252 Adventurer 4 Explorer 13 Win Type - Total 8 Types 6/0/0/2/0/0/0/0/0 Lore% 64 Gallery% 80 Achievement% 68 Wizard Run 0 Options --------- ASCII 0 Keyboard 1 Movement Numpad Keybinds 0 Fullscreen 1 Font 18/SmallcapsGlow Map View 76x50 Tactical HUD 1 Map Filters NONE Filters NONE Steam 1 RUN: cf71a794-30aa-4208-9e83-cde1be53b649